fUSD/lending_fUSD_20260208
["ID","MTS","AMOUNT","RATE_DAILY","PERIOD"]
[404814430,1770592244461,-500.0,0.00044356,120]
[404814433,1770592244471,-500.0,0.00044356,120]
[404814435,1770592244481,-500.0,0.00044356,120]
[404814436,1770592244493,-500.0,0.00044356,120]
[404814437,1770592244503,-647.55,0.00044356,120]
[404814438,1770592244513,-500.0,0.00044356,120]
[404814439,1770592244522,-500.0,0.00044356,120]
[404814440,1770592244532,-500.0,0.00044356,120]
[404814441,1770592244541,-500.0,0.00044356,120]
[404814442,1770592244551,-500.0,0.00044356,120]
[404814443,1770592244561,-500.0,0.00044356,120]
[404814444,1770592244573,-500.0,0.00044356,120]
[404814445,1770592244583,-500.0,0.00044356,120]
[404814446,1770592244594,-500.0,0.00044356,120]
[404814447,1770592244604,-500.0,0.00044356,120]
[404814448,1770592244614,-500.0,0.00044356,120]
[404814449,1770592244626,-532.09,0.00044356,120]
[404814450,1770592244636,-532.58292275,0.00044356,120]
[404814451,1770592244646,-500.0,0.00044356,120]
[404814452,1770592244658,-500.0,0.00044356,120]
[404814453,1770592244670,-500.0,0.00044356,120]
[404814454,1770592244682,-500.0,0.00044356,120]
[404814455,1770592244691,-500.0,0.00044356,120]
[404814456,1770592244703,-500.0,0.00044356,120]
[404814457,1770592244714,-500.0,0.00044356,120]
[404814458,1770592244724,-500.0,0.00044356,120]
[404814459,1770592244733,-500.0,0.00044356,120]
[404814460,1770592244742,-500.0,0.00044356,120]
[404814461,1770592244752,-500.0,0.00044356,120]
[404814462,1770592244762,-500.0,0.00044356,120]
[404814463,1770592244775,-433.27031159,0.00044356,120]
[404814464,1770592244785,-500.0,0.00044356,120]
[404814465,1770592244797,-500.0,0.00044356,120]
[404814466,1770592244806,-500.0,0.00044356,120]
[404814467,1770592244816,-500.0,0.00044356,120]
[404814468,1770592244825,-500.0,0.00044356,120]
[404814469,1770592244836,-500.0,0.00044356,120]
[404814470,1770592244847,-500.0,0.00044356,120]
[404814471,1770592244857,-500.0,0.00044356,120]
[404814472,1770592244868,-211.76419288,0.00044356,120]
[404814473,1770592244879,-395.84,0.00044356,120]
[404814474,1770592244889,-500.0,0.00044356,120]
[404814475,1770592244899,-500.0,0.00044356,60]
[404814476,1770592244909,-359.35723362,0.00044356,60]
[404814477,1770592244919,-500.0,0.00044356,120]
[404814478,1770592244930,-500.0,0.00044356,120]
[404814479,1770592244939,-500.0,0.00044356,120]
[404814480,1770592244953,-500.0,0.00044356,120]
[404814481,1770592244963,-500.0,0.00044356,120]
[404814482,1770592244975,-500.0,0.00044356,120]
[404814483,1770592244984,-500.0,0.00044356,120]
[404814484,1770592244994,-500.0,0.00044356,120]
[404814485,1770592245003,-513.6621407,0.00044356,120]
[404814486,1770592245013,-500.0,0.00044356,60]
[404814487,1770592245023,-500.0,0.00044356,120]
[404814488,1770592245033,-500.0,0.00044356,60]
[404814489,1770592245042,-500.0,0.00044356,120]
[404814490,1770592245051,-563.99,0.00044356,60]
[404814491,1770592245061,-500.0,0.00044356,120]
[404814492,1770592245071,-500.0,0.00044356,120]
[404814493,1770592245080,-500.0,0.00044356,120]
[404814494,1770592245091,-500.0,0.00044356,120]
[404814495,1770592245100,-568.68806371,0.00044356,120]
[404814496,1770592245110,-500.0,0.00044356,120]
[404814497,1770592245119,-500.0,0.00044356,120]
[404814498,1770592245129,-513.9088995,0.00044356,120]
[404814499,1770592245139,-500.0,0.00044356,120]
[404814500,1770592245150,-500.0,0.00044356,120]
[404814501,1770592245159,-508.34809128,0.00044356,120]
[404814502,1770592245169,-604.84,0.00044356,120]
[404814503,1770592245178,-500.0,0.00044356,120]
[404814504,1770592245187,-511.73612144,0.00044356,120]
[404814505,1770592245202,-500.0,0.00044356,120]
[404814506,1770592245211,-500.0,0.00044356,120]
[404814507,1770592245221,-500.0,0.00044356,120]
[404814508,1770592245230,-500.0,0.00044356,120]
[404814509,1770592245240,-530.74239271,0.00044356,120]
[404814510,1770592245249,-500.0,0.00044356,120]
[404814511,1770592245258,-532.83668493,0.00044356,120]
[404814512,1770592245269,-500.0,0.00044356,120]
[404814513,1770592245279,-515.50211903,0.00044356,120]
[404814514,1770592245289,-500.0,0.00044356,120]
[404814515,1770592245300,-524.48309527,0.00044356,120]
[404814516,1770592245309,-500.0,0.00044356,120]
[404814517,1770592245320,-503.21314726,0.00044356,120]
[404814518,1770592245330,-500.0,0.00044356,120]
[404814519,1770592245342,-506.52141054,0.00044356,120]
[404814520,1770592245352,-500.0,0.00044356,120]
[404814521,1770592245362,-500.0,0.00044356,120]
[404814522,1770592245373,-500.0,0.00044356,120]
[404814523,1770592245384,-506.78815961,0.00044356,120]
[404814524,1770592245394,-503.24884775,0.00044356,120]
[404814525,1770592245403,-500.0,0.00044356,120]
[404814526,1770592245414,-500.0,0.00044356,120]
[404814527,1770592245423,-500.0,0.00044356,120]
[404814528,1770592245433,-500.0,0.00044356,120]
[404814529,1770592245442,-500.0,0.00044356,120]
[404814530,1770592245454,-500.0,0.00044356,120]
[404814531,1770592245464,-500.0,0.00044356,120]
[404814532,1770592245473,-649.19883224,0.00044356,120]
[404814533,1770592245482,-500.0,0.00044356,120]
[404814534,1770592245491,-500.0,0.00044356,120]
[404814535,1770592245501,-500.0,0.00044356,120]
[404814536,1770592245510,-506.41158114,0.00044356,120]
[404814537,1770592245519,-500.0,0.00044356,120]
[404814538,1770592245529,-500.0,0.00044356,120]
[404814539,1770592245539,-500.0,0.00044356,120]
[404814540,1770592245550,-500.0,0.00044356,120]
[404814541,1770592245559,-500.0,0.00044356,120]
[404814542,1770592245570,-500.0,0.00044356,120]
[404814543,1770592245580,-500.0,0.00044356,120]
[404814544,1770592245590,-500.0,0.00044356,120]
[404814545,1770592245599,-500.0,0.00044356,120]
[404814546,1770592245608,-506.6719594,0.00044356,120]
[404814547,1770592245617,-500.0,0.00044356,120]
[404814548,1770592245627,-500.0,0.00044356,120]
[404814549,1770592245637,-286.83697891,0.00044356,120]
[404814550,1770592245647,-500.0,0.00044356,120]
[404814551,1770592245656,-500.0,0.00044356,120]
[404814552,1770592245665,-500.0,0.00044356,120]
[404814553,1770592245674,-500.0,0.00044356,120]
[404814554,1770592245684,-500.0,0.00044356,120]
[404814555,1770592245693,-500.0,0.00044356,120]
[404814556,1770592245705,-613.34907591,0.00044356,120]
[404814557,1770592245715,-500.0,0.00044356,120]
[404814558,1770592245724,-617.93042195,0.00044356,120]
[404814559,1770592245733,-500.0,0.00044356,120]
[404814560,1770592245742,-500.0,0.00044356,120]
[404814561,1770592245752,-511.28772603,0.00044356,120]
[404814562,1770592245762,-191.08972978,0.00044356,120]
[404814563,1770592245771,-500.0,0.00044356,120]
[404814564,1770592245781,-500.0,0.00044356,120]
[404814565,1770592245791,-500.0,0.00044356,120]
[404814566,1770592245800,-525.13451835,0.00044356,120]
[404814567,1770592245811,-513.00886088,0.00044356,120]
[404814568,1770592245823,-500.0,0.00044356,120]
[404814569,1770592245833,-500.0,0.00044356,120]
[404814570,1770592245843,-577.44704913,0.00044356,120]
[404814571,1770592245853,-514.67741116,0.00044356,120]
[404814572,1770592245864,-633.28314932,0.00044356,120]
[404814573,1770592245874,-500.38461673,0.00044356,120]
[404814574,1770592245886,-500.0,0.00044356,120]
[404814575,1770592245897,-500.0,0.00044356,120]
[404814576,1770592245906,-500.0,0.00044356,120]
[404814577,1770592245916,-500.0,0.00044356,120]
[404814578,1770592245925,-500.0,0.00044356,120]
[404814579,1770592245935,-500.0,0.00044356,120]
[404814580,1770592245944,-500.0,0.00044356,120]
[404814581,1770592245958,-510.11883875,0.00044356,120]
[404814582,1770592245967,-500.0,0.00044356,120]
[404814583,1770592245976,-500.0,0.00044356,120]
[404814584,1770592245985,-507.2848274,0.00044356,120]
[404814585,1770592245994,-629.62419586,0.00044356,120]
[404814586,1770592246003,-575.02524485,0.00044356,120]
[404814587,1770592246013,-500.0,0.00044356,120]
[404814588,1770592246027,-500.0,0.00044356,120]
[404814589,1770592246037,-507.66527492,0.00044356,120]
[404814590,1770592246047,-500.0,0.00044356,120]
[404814591,1770592246056,-500.0,0.00044356,120]
[404814592,1770592246066,-547.69974266,0.00044356,120]
[404814593,1770592246076,-500.0,0.00044356,120]
[404814594,1770592246085,-494.63817025,0.00044356,120]
[404814595,1770592246096,-500.0,0.00044356,120]
[404814596,1770592246105,-511.20585153,0.00044356,120]
[404814598,1770592246116,-500.0,0.00044356,120]
[404814600,1770592246126,-508.06873793,0.00044356,120]
[404814602,1770592246136,-515.68241178,0.00044356,120]
[404814603,1770592246146,-500.0,0.00044356,120]
[404814604,1770592246156,-527.11627345,0.00044356,120]
[404814605,1770592246165,-500.0,0.00044356,120]
[404814606,1770592246175,-500.0,0.00044356,120]
[404814607,1770592246184,-500.0,0.00044356,120]
[404814608,1770592246194,-200.0,0.00044356,120]
[404814609,1770592246211,-500.0,0.00044356,120]
[404814610,1770592246222,-532.51105968,0.00044356,120]
[404814611,1770592246232,-500.0,0.00044356,120]
[404814612,1770592246242,-500.0,0.00044356,120]
[404814613,1770592246251,-607.18881585,0.00044356,120]
[404814614,1770592246261,-500.0,0.00044356,120]
[404814615,1770592246271,-500.0,0.00044356,120]
[404814616,1770592246280,-500.0,0.00044356,120]
[404814617,1770592246290,-200.0,0.00044366,31]
[404814618,1770592246300,-207.4,0.00044366,54]
[404814619,1770592246309,-215.0738,0.00044366,60]
[404814620,1770592246319,-250.0,0.00044366,31]
[404814621,1770592246329,-250.0,0.00044366,54]
[404814622,1770592246338,-250.0,0.00044366,60]
[404814623,1770592246348,-250.0,0.00044366,120]
[404814624,1770592246357,-150.0,0.00044367,30]
[404814625,1770592246367,-150.0,0.00044367,30]
[404814626,1770592246376,-150.0,0.00044367,30]
[404814627,1770592246386,-150.0,0.00044367,30]
[404814628,1770592246395,-150.0,0.00044367,30]
[404814629,1770592246405,-150.0,0.00044367,30]
[404814630,1770592246415,-150.0,0.00044367,2]
[404814631,1770592246424,-391879.79145044,0.00044368,10]
[404814632,1770592246536,-527.3580023,0.00044356,120]
[404814633,1770592246546,-3287.78118842,0.00044368,10]
[404814634,1770592246558,-1390.31415933,0.00044368,10]
[404814635,1770592246569,-1660.182627,0.00044368,10]
[404814636,1770592246582,-10942.89648548,0.00044368,10]
[404814637,1770592246594,-10208.49682375,0.00044368,10]
[404814638,1770592246605,-1297.56,0.00044368,10]
[404814639,1770592246617,-358.08,0.00044368,10]
[404814640,1770592246662,-1510.13526797,0.00040383,2]
[404814641,1770592246673,-1894.1754418,0.00040383,2]
[404814642,1770592246683,-1861.36479506,0.00044368,10]
[404814643,1770592246694,-1335.22,0.00044368,10]
[404814644,1770592246710,-301.0,0.00044368,10]
[404814645,1770592246880,-2094.24280561,0.00044368,10]
[404814646,1770592246910,-500.0,0.00044356,120]
[404814647,1770592246920,-231.23,0.00044356,120]
[404814648,1770592246930,-715.85477503,0.00044368,10]
[404814649,1770592246942,-338.08265994,0.00044368,10]
[404814650,1770592246960,-7415.7805,0.00044368,10]
[404814651,1770592246971,-892.27596904,0.00044368,10]
[404814653,1770592246982,-362.90487414,0.00044368,10]
[404814654,1770592246994,-6582.48987864,0.00044368,10]
[404814655,1770592247004,-8356.0000005,0.00044368,10]
[404814656,1770592259882,-509.0,0.00032616,2]
[404814657,1770592259909,-300.0,0.00037808,2]
[404814658,1770592259937,-509.0,0.00040514,11]
[404814659,1770592264661,-300.0,0.00037808,2]
[404814660,1770592264695,-9400.01,0.00042546,120]
[404814661,1770592265067,-715.57,0.00042546,120]
[404814662,1770592265101,-8568.87,0.00042546,120]
[404814663,1770592265134,-10000.01,0.00042546,30]
[404814664,1770592265676,-1677.77,0.00042546,30]
[404814665,1770592265703,-800.0,0.0004274,7]
[404814666,1770592268688,-168.0,0.00043144,2]
[404814667,1770592268716,-2328.46,0.00044158,120]
[404814668,1770592271700,-7.09,0.00044158,120]
[404814669,1770592272598,150.0,0.00034904,2]
[404814670,1770592273836,150.0,0.00036649,2]
[404814671,1770592274654,150.0,0.00044175,2]
[404814672,1770592274817,150.0,0.00038482,2]
[404814673,1770592275762,150.0,0.00040406,2]
[404814674,1770592276734,150.0,0.00042426,120]
[404814675,1770592277253,917.0,0.00043243,2]
[404814676,1770592278957,3168.83,0.00044028,15]
[404814677,1770592278983,5000.01,0.00044028,15]
[404814678,1770592279008,5000.01,0.00044028,15]
[404814679,1770592279034,5000.01,0.00044028,15]
[404814680,1770592279057,5000.01,0.00044028,15]
[404814681,1770592279082,1831.13,0.00044028,15]
[404814682,1770592281795,1850.58734761,0.00043036,2]
[404814683,1770592297228,652.0,0.00044175,2]
[404814685,1770592314161,1999.0,0.00043835,120]
[404814686,1770592316031,500.0,0.00044168,2]
[404814687,1770592324746,196.31055083,0.00036497,15]
[404814688,1770592326071,484.20408064,0.00036497,15]
[404814689,1770592327404,159.33748378,0.00036497,15]
[404814690,1770592337251,1009.15788475,0.00040868,5]
[404814691,1770592337274,490.84211525,0.00040868,5]
[404814692,1770592337303,3500.0,0.0004306,10]
[404814693,1770592337330,500.0,0.00039773,5]
[404814694,1770592337370,509.16788475,0.00041416,10]
[404814695,1770592337395,1490.83211525,0.00041416,10]
[404814696,1770592337420,1000.0,0.00040321,5]
[404814697,1770592337447,2500.0,0.00041964,10]
[404814698,1770592337473,9.17788475,0.00042512,10]
[404814699,1770592346279,-1100.99328298,0.00036497,15]
[404814700,1770592346322,-1100.99328298,0.00036497,15]
[404814701,1770592346362,-1100.99328298,0.00036497,15]
[404814702,1770592346405,-1100.99328298,0.00036497,15]
[404814703,1770592346449,-91.07045318,0.00036497,15]
[404814704,1770592346568,-1009.9228298,0.00036497,15]
[404814705,1770592347549,-1100.99328298,0.00036497,15]
[404814706,1770592347583,-1100.99328298,0.00036497,15]
[404814707,1770592347614,-1100.99328298,0.00036497,15]
[404814708,1770592347644,-1100.99328298,0.00036497,15]
[404814709,1770592347674,-91.07045318,0.00036497,15]
[404814710,1770592347746,-1009.9228298,0.00036497,15]
[404814711,1770592347880,-1100.99328298,0.00036497,15]
[404814712,1770592347919,-1100.99328298,0.00036497,15]
[404814713,1770592347952,-1100.99328298,0.00036497,15]
[404814714,1770592347987,-1100.99328298,0.00036497,15]
[404814715,1770592348018,-91.07045318,0.00036497,15]
[404814716,1770592348100,-1009.9228298,0.00036497,15]
[404814717,1770592350529,-1100.99328298,0.00036497,15]
[404814718,1770592350564,-1100.99328298,0.00036497,15]
[404814719,1770592350595,-1100.99328298,0.00036497,15]
[404814720,1770592350629,-1100.99328298,0.00036497,15]
[404814721,1770592350660,-91.07045318,0.00036497,15]
[404814722,1770592350740,-1009.9228298,0.00036497,15]
[404814723,1770592356248,-1100.99328298,0.00036497,15]
[404814724,1770592356284,-1100.99328298,0.00036497,15]
[404814725,1770592356321,-1100.99328298,0.00036497,15]
[404814726,1770592356355,-1100.99328298,0.00036497,15]
[404814727,1770592356388,-91.07045318,0.00036497,15]
[404814728,1770592356464,-1009.9228298,0.00036497,15]
[404814729,1770592356501,-1100.99328298,0.00036497,15]
[404814730,1770592356535,-1100.99328298,0.00036497,15]
[404814731,1770592356570,-1100.99328298,0.00036497,15]
[404814732,1770592356602,-1100.99328298,0.00036497,15]
[404814733,1770592356633,-91.07045318,0.00036497,15]
[404814734,1770592356719,-1009.9228298,0.00036497,15]
[404814735,1770592362278,-1100.99328298,0.00036497,15]
[404814736,1770592362312,-1100.99328298,0.00036497,15]
[404814737,1770592362346,-1100.99328298,0.00036497,15]
[404814738,1770592362381,-1100.99328298,0.00036497,15]
[404814739,1770592362415,-91.07045318,0.00036497,15]
[404814740,1770592362491,-1009.9228298,0.00036497,15]
[404814741,1770592362525,-1100.99328298,0.00036497,15]
[404814742,1770592362558,-1100.99328298,0.00036497,15]
[404814743,1770592362593,-1100.99328298,0.00036497,15]
[404814744,1770592362630,-273.21135954,0.00036497,15]
[404814745,1770592362739,-736.71147026,0.00036497,15]
[404814746,1770592362752,-91.07045318,0.00036497,15]
[404814747,1770592362762,-1009.9228298,0.00036497,15]
[404814748,1770592371356,-91.07045318,0.00036497,15]
[404814749,1770592371389,-1100.99328298,0.00036497,15]
[404814750,1770592371421,-1100.99328298,0.00036497,15]
[404814751,1770592371452,-1100.99328298,0.00036497,15]
[404814752,1770592371483,-366.09889777,0.00036497,15]
[404814753,1770592371573,-2479.71160022,0.00042512,10]
[404814754,1770592377405,-511.11051503,0.00042512,10]
[404814755,1770592377434,-1636.26,0.00043359,2]
[404814756,1770592377461,-2827.0,0.00043392,16]
[404814757,1770592377522,-51.26896994,0.00043608,10]
[404814758,1770592380587,-2827.0,0.00042754,16]
[404814759,1770592393275,2827.0,0.00042668,16]
[404814760,1770592396592,2827.0,0.00042752,16]
[404814761,1770592401660,-2827.0,0.00043077,16]
[404814762,1770592401695,-1519.01,0.00043405,16]
[404814763,1770592407798,-1730.0,0.00043403,16]
[404814764,1770592407826,-1307.99,0.00043405,16]
[404814765,1770592407857,-888.21794546,0.00043608,10]
[404814766,1770592410797,-1942.92932291,0.00036497,15]
[404814767,1770592410828,-1942.92932291,0.00036497,15]
[404814768,1770592410862,-285.36338545,0.00036497,15]
[404814769,1770592410970,-1657.56593746,0.00036497,15]
[404814770,1770592411001,-1942.92932291,0.00036497,15]
[404814771,1770592411037,-856.09015635,0.00036497,15]
[404814772,1770592411110,-548.19715856,0.00036497,15]
[404814773,1770592413823,-538.642008,0.00036497,15]
[404814774,1770592413856,-1942.92932291,0.00036497,15]
[404814775,1770592413887,-1942.92932291,0.00036497,15]
[404814776,1770592413945,-1151.00869236,0.00036497,15]
[404814777,1770592413980,-791.92063055,0.00036497,15]
[404814778,1770592414019,-1942.92932291,0.00036497,15]
[404814779,1770592414054,-1942.92932291,0.00036497,15]
[404814780,1770592414121,-644.45144726,0.00036497,15]
[404814781,1770592416771,-1298.47787565,0.00036497,15]
[404814782,1770592416805,-1942.92932291,0.00036497,15]
[404814783,1770592416837,-1574.26627997,0.00036497,15]
[404814784,1770592416886,-368.66304294,0.00036497,15]
[404814785,1770592416922,-1942.92932291,0.00036497,15]
[404814786,1770592416954,-1942.92932291,0.00036497,15]
[404814787,1770592416986,-285.36338545,0.00036497,15]
[404814788,1770592417045,-1657.56593746,0.00036497,15]
[404814789,1770592420084,-1942.92932291,0.00036497,15]
[404814790,1770592420122,-1942.92932291,0.00036497,15]
[404814791,1770592420159,-285.36338545,0.00036497,15]
[404814792,1770592420219,-1657.56593746,0.00036497,15]
[404814793,1770592425918,-1942.92932291,0.00036497,15]
[404814794,1770592425953,-1942.92932291,0.00036497,15]
[404814795,1770592425987,-285.36338545,0.00036497,15]
[404814796,1770592426038,-1657.56593746,0.00036497,15]
[404814797,1770592426077,-1942.92932291,0.00036497,15]
[404814798,1770592426113,-1942.92932291,0.00036497,15]
[404814799,1770592426146,-80.69859928,0.00043608,10]
[404814800,1770592426192,-2066.8955098,0.00043608,10]
[404814801,1770592428904,-345.04,0.0004364,2]
[404814802,1770592428933,-2827.0,0.00043686,16]
[404814803,1770592428962,-828.93,0.00043712,16]
[404814804,1770592429010,-1998.07,0.00043712,16]
[404814805,1770592431908,-2827.0,0.00043714,16]
[404814806,1770592445606,150.0,0.00042846,120]
[404814807,1770592445997,296.08890973,0.0004362,2]
[404814808,1770592457332,211.87058824,0.0002737,2]
[404814809,1770592457667,282.49411765,0.00032849,30]
[404814810,1770592462091,990.89395469,0.00036497,15]
[404814811,1770592466439,500.0,0.00036497,15]
[404814812,1770592466539,500.0,0.00036497,15]
[404814813,1770592466752,489.7027728,0.00036497,15]
[404814814,1770592470143,379.58575527,0.00036497,15]
[404814815,1770592470809,162.0,0.00042,2]
[404814816,1770592471500,217.04487695,0.00036497,15]
[404814817,1770592481218,166.16395278,0.00036497,15]
[404814818,1770592486739,594.48135214,0.00036497,7]
[404814819,1770592490057,500.0,0.00036497,15]
[404814820,1770592490100,500.0,0.00036497,15]
[404814821,1770592490149,500.0,0.00036497,15]
[404814822,1770592490183,500.0,0.00036497,15]
[404814823,1770592490215,322.50674689,0.00036497,15]
[404814824,1770592503100,2881.63707133,0.00035,7]
[404814825,1770592508053,280.43398351,0.00036497,15]
[404814826,1770592513954,1000.0,0.00043265,120]
[404814827,1770592516107,1335.0,0.00043243,2]
[404814829,1770592526057,616.0,0.00043243,2]
[404814830,1770592537516,803.78689335,0.00043243,2]
[404814831,1770592537539,2680.21310665,0.00043243,2]
[404814832,1770592546311,160.68,0.00043237,2]
[404814833,1770592547160,6585.0,0.00043243,2]
[404814834,1770592559445,412.0,0.00043243,2]
[404814835,1770592572975,162.11689335,0.00043228,2]
[404814836,1770592573000,10000.01,0.00043228,2]
[404814837,1770592573027,10000.01,0.00043228,2]
[404814838,1770592573067,1254.24310665,0.00043228,2]
[404814839,1770592601507,917.0,0.00043243,2]
[404814840,1770592613079,150.0,0.00042782,120]
[404814841,1770592620111,509.0,0.00040655,10]
[404814842,1770592629302,2000.0,0.000419,2]
[404814843,1770592679391,-1006.40219827,0.00043727,117]
[404814844,1770592681281,-300.0,0.00043726,5]
[404814845,1770592681321,-9400.01,0.00043727,117]
[404814846,1770592681401,-954.58780173,0.00043727,117]
[404814847,1770592682373,550.0,0.00043726,5]
[404814848,1770592689933,247.53,0.00043224,2]
[404814849,1770592745612,539.29236495,0.00042724,60]
[404814850,1770592754166,-182.53119123,0.00043727,2]
[404814851,1770592754203,-182.53119123,0.00043727,2]
[404814852,1770592758255,150.0,0.00043231,2]
[404814853,1770592776318,1852.42,0.00043235,2]
[404814854,1770592779099,150.0,0.00042905,120]
[404814855,1770592797705,327.70424562,0.00043235,2]
[404814856,1770592803091,2669.88575438,0.00035,7]
[404814857,1770592803123,211.75131695,0.00035,7]
[404814858,1770592805550,2447.0,0.00043243,2]
[404814859,1770592808475,152.0,0.00042958,4]
[404814860,1770592808784,152.0,0.00037817,3]
[404814861,1770592816285,2037.25868305,0.00043243,2]
[404814862,1770592816306,1217.74131695,0.00043243,2]
[404814863,1770592827377,412.0,0.00043243,2]
[404814864,1770592831683,3370.26868305,0.00043229,2]
[404814865,1770592831704,5000.01,0.00043229,2]
[404814866,1770592831725,5000.01,0.00043229,2]
[404814867,1770592831746,72.62131695,0.00043229,2]
[404814868,1770592837564,4927.38868305,0.00043243,2]
[404814869,1770592837585,1657.61131695,0.00043243,2]
[404814870,1770592863053,3342.39868305,0.00039209,2]
[404814871,1770592863075,2533.51786115,0.00039209,2]
[404814872,1770592864866,500.0,0.00027473,5]
[404814873,1770592864898,758.30109505,0.00028021,5]
[404814874,1770592865430,187.825,0.00043243,2]
[404814875,1770592950367,150.0,0.00042905,120]
[404814876,1770592963388,300.090722,0.0004361,117]
[404814877,1770592978383,509.0,0.00040781,10]
[404814878,1770593000708,4040.919278,0.000437,120]
[404814879,1770593000728,5000.01,0.000437,120]
[404814880,1770593000749,5000.01,0.000437,120]
[404814881,1770593000769,5000.01,0.000437,120]
[404814882,1770593000790,5000.01,0.000437,120]
[404814883,1770593013657,-9052.48,0.00043212,2]
[404814884,1770593013854,-4056.34,0.00043212,2]
[404814885,1770593022358,807.6851987,0.00042,3]
[404814886,1770593028695,-9192.3248013,0.000436,120]
[404814887,1770593028913,-10000.01,0.000436,120]
[404814888,1770593031775,-10000.01,0.000436,120]
[404814889,1770593031975,-10000.01,0.000436,120]
[404814890,1770593033355,-1229.00633124,0.000436,120]
[404814891,1770593033428,-5000.01,0.000436,120]
[404814892,1770593036967,150.48,0.0004321,120]
[404814893,1770593038891,3390.89898856,0.00043525,2]
[404814894,1770593040287,898.98175907,0.00043525,2]
[404814895,1770593073283,169.75030082,0.00043068,30]
[404814896,1770593075404,389.89895155,0.00043525,2]
[404814897,1770593075426,815.46446478,0.00043525,2]
[404814898,1770593080235,4184.54553522,0.000435,120]
[404814899,1770593080259,5000.01,0.000435,120]
[404814900,1770593080284,5000.01,0.000435,120]
[404814901,1770593095325,-154.0,0.0004,120]
[404814902,1770593099031,163.85212281,0.00024999,2]
[404814903,1770593103121,2881.63707133,0.00035,7]
[404814904,1770593103183,5763.27414266,0.00035,7]
[404814905,1770593108033,883.2466632,0.00018,2]
[404814906,1770593108059,10000.01,0.00018,2]
[404814907,1770593108084,10000.01,0.00018,2]
[404814908,1770593108120,10000.01,0.00018,2]
[404814909,1770593108151,10000.01,0.00018,2]
[404814910,1770593108176,10000.01,0.00018,2]
[404814911,1770593108201,10000.01,0.00018,2]
[404814912,1770593108226,10000.01,0.00018,2]
[404814913,1770593108255,10000.01,0.00018,2]
[404814914,1770593108282,10000.01,0.00018,2]
[404814915,1770593108310,5000.01,0.00018,2]
[404814916,1770593108336,5000.01,0.00018,2]
[404814917,1770593108363,5000.01,0.00018,2]
[404814918,1770593108387,5000.01,0.00018,2]
[404814919,1770593108414,5000.01,0.00018,2]
[404814920,1770593108439,5000.01,0.00018,2]
[404814921,1770593108464,5000.01,0.00018,2]
[404814922,1770593108488,5000.01,0.00018,2]
[404814923,1770593108511,5000.01,0.00018,2]
[404814924,1770593108542,3074.89826769,0.00018,2]
[404814925,1770593108568,3074.89826769,0.00018,2]
[404814926,1770593108593,3074.89826769,0.00018,2]
[404814927,1770593108618,3074.89826769,0.00018,2]
[404814928,1770593108643,3074.89826769,0.00018,2]
[404814929,1770593108670,3074.89826769,0.00018,2]
[404814930,1770593108696,3074.89826769,0.00018,2]
[404814931,1770593108722,3074.89826769,0.00018,2]
[404814932,1770593108749,3074.89826769,0.00018,2]
[404814933,1770593108773,3074.89826769,0.00018,2]
[404814934,1770593114041,-308.0,0.00018,2]
[404814935,1770593114174,-10000.01,0.00018,2]
[404814936,1770593114276,-10000.01,0.00018,2]
[404814937,1770593114394,-10000.01,0.00018,2]
[404814938,1770593119387,-10000.01,0.00018,2]